Workbook

Sheet tax-calculator (hidden)
B3: New Simplified Personal Income Tax Regime u/s 115BAC AY 2024-25 | G3: Senior Citizen (60 Yrs or more)
C4: Select your Category | E4: Other | G4: Senior Citizen (80 Yrs or more)
G5: Other
B6: A | C6: Enter your Gross Income without any deduction/exemption | E6: 700000
B7: B | C7: Less: Select Allowances/Exemptions/Deductions/Set Off you are normally entitled to | E7: Fill estimated amount hereunder | I7: Txable Income old | J7: =E27 -> 700000 | Q7: Old Scheme | R7: Rebate | S7: Net Tax | T7: New Scheme | U7: Rebate | V7: Net Tax
B8: 1 | C8: Leave Travel Concession | I8: Taxable income new | J8: =E6-(E11+E17) -> 700000 | N8: Senior Citizen (60 Yrs or more) | Q8: =J11 -> 50000 | R8: =IF($J$7>500000,0,Q8) -> 0 | S8: =Q8-R8 -> 50000 | T8: =J12 -> 25000 | U8: =IF($J$8>700000,0,T8) -> 25000 | V8: =T8-U8 -> 0
B9: 2 | C9: House Rent Allowance | N9: Senior Citizen (80 Yrs or more) | Q9: =K11 -> 40000 | R9: =IF($J$7>500000,0,Q9) -> 0 | S9: =Q9-R9 -> 40000 | T9: =K12 -> 25000 | U9: =IF($J$8>700000,0,T9) -> 25000 | V9: =T9-U9 -> 0
B10: 3 | C10: Any Exempt Allowance other than mentioned at 4 | J10: Senior Citizen | K10: Super Senior | L10: Others | N10: Other | Q10: =L11 -> 52500 | R10: 0 | S10: 52500 | T10: =L12 -> 25000 | U10: =IF($J$8>700000,0,T10) -> 25000 | V10: 0
B11: =B10+1 -> 4 | C11: Allowances mentioned at footnote # | I11: Tax as per old scheme | J11: =SUMPRODUCT(--(J7>(J30:J32)), (J7-(J30:J32)), (L31:L33)) -> 50000 | K11: =SUMPRODUCT(--(J7>(J38:J39)), (J7-(J38:J39)), (L39:L40)) -> 40000 | L11: =SUMPRODUCT(--(J7>(J20:J22)), (J7-(J20:J22)), (L21:L23)) -> 52500
B12: =B11+1 -> 5 | C12: Standard Deduction on Salaries | I12: Tax as per new scheme | J12: =SUMPRODUCT(--(J8>(O20:O24)), (J8-(O20:O24)), (Q21:Q25)) -> 25000 | K12: =SUMPRODUCT(--(J8>(O20:O25)), (J8-(O20:O25)), (Q21:Q26)) -> 25000 | L12: =SUMPRODUCT(--(J8>(O20:O25)), (J8-(O20:O25)), (Q21:Q26)) -> 25000 | N12: Final Tax based on category Selection | Q12: Old Scheme | R12: New Scheme
B13: 6 | C13: Housing Loan Interest on self Occupied/Vacant House | N13: =E4 -> Other | Q13: =VLOOKUP(E4,N8:S10,6,FALSE) -> 52500 | R13: =VLOOKUP(E4,N8:V10,9,FALSE) -> 0
B14: 7 | C14: Family Pension Deduction
B15: 8 | C15: MP/MLA Allowance
B16: 9 | C16: Any deduction under chapter VIA ((like section 80C, 80CCC, 80CCD, 80D, 80DD, 80DDB, 80E, 80EE, 80EEA, 80EEB, 80G, 80GG, 80GGA, 80GGC, 80IA, 80-IAB, 80-IAC, 80-IB, 80-IBA, etc)
B17: 10 | C17: Deductions for Pension Scheme u/s 80CCD and 80JJAA for new employment
B18: 11 | C18: SEZ Exemption | I18: Income tax slab old | N18: Income tax slab new
B19: 12 | C19: Entertainment Allowance | I19: From | J19: To | K19: Income Tax Rate | L19: Differential Rate | N19: From | O19: To | P19: Income Tax Rate | Q19: Differential Rate
B20: 13 | C20: Employment/Professional Tax | I20: 0 | J20: 250000 | K20: 0 | N20: 0 | O20: 300000 | P20: 0
B21: 14 | C21: Losses from House Property for rented property | I21: 250001 | J21: 500000 | K21: 0.05 | L21: =K21-K20 -> 0.05 | N21: 300001 | O21: 600000 | P21: 0.05 | Q21: =P21-P20 -> 0.05
B22: 15 | C22: Higher/AdditionalDepreciation | I22: 500001 | J22: 1000000 | K22: 0.2 | L22: =K22-K21 -> 0.15 | N22: 600001 | O22: 900000 | P22: 0.1 | Q22: =P22-P21 -> 0.05
B23: 16 | C23: Deductions u/s 32AD, 33AB, 33AB | I23: above 1000000/- | K23: 0.3 | L23: =K23-K22 -> 0.1 | N23: 900001 | O23: 1200000 | P23: 0.15 | Q23: =P23-P22 -> 0.05
B24: 17 | C24: Expenditure on scientific research | N24: 1200001 | O24: 1500000 | P24: 0.2 | Q24: =P24-P23 -> 0.05
B25: 18 | C25: Deduction u/s 35AD or 35CCC | N25: 1500001 and above | P25: 0.3 | Q25: =P25-P24 -> 0.1
B26: 19 | C26: Any other exemption/Deduction | I26: Income Tax Slab for Senior Citizens AY 2016-17 and AY 2015-16
B27: C | C27: Total Income (A-B) | E27: =E6-SUM(E8:E26) -> 700000 | I27: From | J27: To | K27: Income Tax Rate | L27: Differential Rate
C29: Tax under Old Regime (after Section 87A rebate) | E29: =Q13 -> 52500
C30: Tax under New Optional Regime (after Section 87A rebate) | E30: =R13 -> 0 | I30: 0 | J30: 300000 | K30: 0
B31: # only following allowances are exempt to the Individual or HUF exercising Option of New Simplified Personal Income Tax Regime: (a) Transport Allowance granted to a divyang employee to meet expenditure for the purpose of commuting between place of residence and place of duty (b) Conveyance Allowance granted to meet the expenditure on conveyance in performance of duties of an office; (c) Any Allowance granted to meet the cost of travel on tour or on transfer; (d) Daily Allowance to meet the ordinary daily charges incurred by employee for absence from his normal place of duty | I31: 300001 | J31: 500000 | K31: 0.05 | L31: =K31-K30 -> 0.05
I32: 500001 | J32: 1000000 | K32: 0.2 | L32: =K32-K31 -> 0.15
I33: above 1000000/- | K33: 0.3 | L33: =K33-K32 -> 0.1
I36: Income Tax Slab for Senior Citizens AY 2016-17 and AY 2015-16
I37: From | J37: To | K37: Income Tax Rate | L37: Differential Rate
I38: 0 | J38: 500000 | K38: 0
I39: 500001 | J39: 1000000 | K39: 0.2 | L39: =K39-K38 -> 0.2
I40: above 1000000/- | K40: 0.3 | L40: =K40-K39 -> 0.1

Sheet Macro-disabled
H6: Macros must be enabled to use this utility
H8: Download help file on how to enable macros
H9: http://abcaus.in/macros.pdf
